[Event "Early-Titled-Tuesday-Blitz-October-24-2023"]
[Site "Chess.com"]
[Date "2023.10.24"]
[Round "4"]
[White "Hasangatin_Ramil"]
[Black "subham777"]
[Result "1-0"]
[WhiteElo "2725"]
[BlackElo "2521"]
[TimeControl "180+1"]
[EndTime "8:38:14 PDT"]
[Termination "Hasangatin_Ramil won on time"]

1. e4 {[%clk 0:03:00.9]} 1... e6 {[%clk 0:02:51.1]} 2. d3 {[%clk 0:03:00.3]}
2... c5 {[%clk 0:02:50.8]} 3. Nf3 {[%clk 0:02:59.4]} 3... Nc6 {[%clk 0:02:50.5]}
4. g3 {[%clk 0:02:59.2]} 4... g6 {[%clk 0:02:50.4]} 5. d4 {[%clk 0:02:59.2]}
5... Bg7 {[%clk 0:02:06.9]} 6. dxc5 {[%clk 0:02:56]} 6... Qa5+ {[%clk
0:02:05.6]} 7. c3 {[%clk 0:02:56]} 7... Qxc5 {[%clk 0:02:05.3]} 8. Be3 {[%clk
0:02:54]} 8... Qe7 {[%clk 0:02:03.3]} 9. Na3 {[%clk 0:02:32.5]} 9... Nf6 {[%clk
0:01:56.3]} 10. Nb5 {[%clk 0:02:30.1]} 10... O-O {[%clk 0:01:37.7]} 11. Nd6
{[%clk 0:02:29.4]} 11... b6 {[%clk 0:01:31.4]} 12. Be2 {[%clk 0:02:17.4]} 12...
Ne8 {[%clk 0:01:23.6]} 13. Bf4 {[%clk 0:02:11.6]} 13... e5 {[%clk 0:01:10.8]}
14. Nxc8 {[%clk 0:02:03.8]} 14... Rxc8 {[%clk 0:01:08.3]} 15. Bg5 {[%clk
0:02:03.4]} 15... f6 {[%clk 0:01:02.5]} 16. Be3 {[%clk 0:02:02.9]} 16... Nc7
{[%clk 0:01:01.2]} 17. O-O {[%clk 0:02:00]} 17... Ne6 {[%clk 0:01:01.1]} 18. Bc4
{[%clk 0:01:53.6]} 18... Kh8 {[%clk 0:00:59.9]} 19. Bd5 {[%clk 0:01:52.7]} 19...
f5 {[%clk 0:00:46]} 20. exf5 {[%clk 0:01:36.9]} 20... gxf5 {[%clk 0:00:43.9]}
21. Re1 {[%clk 0:01:36.7]} 21... f4 {[%clk 0:00:37.8]} 22. Bc1 {[%clk 0:01:35]}
22... fxg3 {[%clk 0:00:31.4]} 23. hxg3 {[%clk 0:01:34.4]} 23... Qf6 {[%clk
0:00:25.3]} 24. Qe2 {[%clk 0:01:26.8]} 24... Nc5 {[%clk 0:00:17.1]} 25. Bg5
{[%clk 0:01:16]} 25... Qg6 {[%clk 0:00:14.6]} 26. Bxc6 {[%clk 0:01:00.6]} 26...
Rxc6 {[%clk 0:00:13.1]} 27. Be7 {[%clk 0:01:01.2]} 27... e4 {[%clk 0:00:05.4]}
28. Bxf8 {[%clk 0:00:57.7]} 28... Bxf8 {[%clk 0:00:06]} 29. Ne5 {[%clk
0:00:54.7]} 29... Qg5 {[%clk 0:00:02.6]} 30. Nxc6 {[%clk 0:00:53.8]} 30... dxc6
{[%clk 0:00:03.4]} 31. Rad1 {[%clk 0:00:52.2]} 31... Bg7 {[%clk 0:00:04]} 32.
Rd4 {[%clk 0:00:50.7]} 32... Be5 {[%clk 0:00:01.7]} 33. Rxe4 {[%clk 0:00:49.1]}
33... Nxe4 {[%clk 0:00:02.3]} 34. Qxe4 {[%clk 0:00:48.7]} 34... Bxg3 {[%clk
0:00:02.4]} 35. Qe8+ {[%clk 0:00:43.5]} 35... Kg7 {[%clk 0:00:02.4]} 36. Qe7+
{[%clk 0:00:39.3]} 36... Qxe7 {[%clk 0:00:01.5]} 37. Rxe7+ {[%clk 0:00:40.2]}
37... Kf6 {[%clk 0:00:02.4]} 38. Rxa7 {[%clk 0:00:38.6]} 38... Bf4 {[%clk
0:00:02.7]} 39. Rxh7 {[%clk 0:00:37.7]} 39... Bc1 {[%clk 0:00:03.3]} 40. b3
{[%clk 0:00:37]} 40... Ke5 {[%clk 0:00:03]} 41. Rh4 {[%clk 0:00:35.9]} 41... b5
{[%clk 0:00:02.5]} 42. c4 {[%clk 0:00:35.7]} 42... bxc4 {[%clk 0:00:01]} 43.
Rxc4 {[%clk 0:00:35.2]} 43... Kd5 {[%clk 0:00:01.6]} 44. a4 {[%clk 0:00:35.1]}
44... Bd2 {[%clk 0:00:01.6]} 45. Kg2 {[%clk 0:00:35.4]} 45... c5 {[%clk
0:00:01.9]} 46. Kf3 {[%clk 0:00:35.4]} 46... Bb4 {[%clk 0:00:02]} 47. Kg4 {[%clk
0:00:35.6]} 47... Bd2 {[%clk 0:00:01.7]} 48. f4 {[%clk 0:00:35.6]} 48... Be3
{[%clk 0:00:02]} 49. f5 {[%clk 0:00:35.6]} 49... Bd4 {[%clk 0:00:02.6]} 50. a5
{[%clk 0:00:35.4]} 50... Kc6 {[%clk 0:00:02.3]} 51. Kg5 {[%clk 0:00:35.5]} 51...
Kb5 {[%clk 0:00:02.5]} 52. f6 {[%clk 0:00:35.8]} 52... Kxa5 {[%clk 0:00:02.5]}
53. f7 {[%clk 0:00:34.4]} 53... Bg7 {[%clk 0:00:03.2]} 54. Rxc5+ {[%clk
0:00:33.9]} 54... Kb4 {[%clk 0:00:03.5]} 55. Rc8 {[%clk 0:00:34.4]} 1-0

[Event "Early-Titled-Tuesday-Blitz-October-24-2023"]
[Site "Chess.com"]
[Date "2023.10.24"]
[Round "4"]
[White "DefiantChair"]
[Black "esrosenberg"]
[Result "1-0"]
[WhiteElo "2651"]
[BlackElo "2457"]
[TimeControl "180+1"]
[EndTime "8:38:15 PDT"]
[Termination "DefiantChair won by resignation"]

1. e4 {[%clk 0:02:56.3]} 1... e5 {[%clk 0:02:59.7]} 2. Nf3 {[%clk 0:02:55.1]}
2... Nc6 {[%clk 0:03:00.3]} 3. Bb5 {[%clk 0:02:55.2]} 3... Nf6 {[%clk
0:02:55.7]} 4. d3 {[%clk 0:02:48.5]} 4... Ne7 {[%clk 0:02:55.5]} 5. O-O {[%clk
0:02:47.7]} 5... c6 {[%clk 0:02:55.4]} 6. Ba4 {[%clk 0:02:46.8]} 6... Ng6 {[%clk
0:02:56]} 7. d4 {[%clk 0:02:46.7]} 7... Be7 {[%clk 0:02:38.5]} 8. Re1 {[%clk
0:02:41.6]} 8... d6 {[%clk 0:02:37.5]} 9. c4 {[%clk 0:02:41]} 9... O-O {[%clk
0:02:33.7]} 10. h3 {[%clk 0:02:40]} 10... Qc7 {[%clk 0:02:28.1]} 11. Nc3 {[%clk
0:02:38]} 11... h6 {[%clk 0:02:21.9]} 12. d5 {[%clk 0:02:36.9]} 12... Bd7 {[%clk
0:02:14.8]} 13. Be3 {[%clk 0:02:32.1]} 13... a6 {[%clk 0:02:07.9]} 14. Bb3
{[%clk 0:02:29.7]} 14... c5 {[%clk 0:01:57.3]} 15. a4 {[%clk 0:02:28.4]} 15...
b6 {[%clk 0:01:56.2]} 16. Qd3 {[%clk 0:02:27.4]} 16... Nh5 {[%clk 0:01:53.1]}
17. a5 {[%clk 0:02:18.4]} 17... Nhf4 {[%clk 0:01:34.1]} 18. Qd2 {[%clk
0:02:10.1]} 18... b5 {[%clk 0:01:31.6]} 19. h4 {[%clk 0:02:01.8]} 19... b4
{[%clk 0:01:20.8]} 20. Na4 {[%clk 0:02:01.4]} 20... Bg4 {[%clk 0:01:21.4]} 21.
Nh2 {[%clk 0:02:00.7]} 21... h5 {[%clk 0:00:33.3]} 22. Nb6 {[%clk 0:01:47.4]}
22... Ra7 {[%clk 0:00:25.4]} 23. f3 {[%clk 0:01:46.6]} 23... Bc8 {[%clk
0:00:19]} 24. g3 {[%clk 0:01:40.1]} 24... Nh3+ {[%clk 0:00:18.2]} 25. Kg2 {[%clk
0:01:40.5]} 25... f5 {[%clk 0:00:14.6]} 26. Nxc8 {[%clk 0:01:22.1]} 26... Qxc8
{[%clk 0:00:14.4]} 27. Kxh3 {[%clk 0:01:14.8]} 27... f4+ {[%clk 0:00:11.8]} 28.
Kg2 {[%clk 0:01:15.2]} 28... fxg3 {[%clk 0:00:09]} 29. Bg5 {[%clk 0:00:54.5]}
29... Nxh4+ {[%clk 0:00:08.1]} 30. Bxh4 {[%clk 0:00:49.8]} 30... Bxh4 {[%clk
0:00:07.5]} 31. Nf1 {[%clk 0:00:49.8]} 31... Qd8 {[%clk 0:00:05.4]} 32. Ne3
{[%clk 0:00:47.7]} 32... Qg5 {[%clk 0:00:03.3]} 33. Rh1 {[%clk 0:00:41.5]} 33...
Raf7 {[%clk 0:00:03.1]} 34. Raf1 {[%clk 0:00:41]} 34... Qf6 {[%clk 0:00:02.2]}
35. Qe2 {[%clk 0:00:35.4]} 35... Bg5 {[%clk 0:00:02.8]} 36. Nf5 {[%clk 0:00:34]}
36... Kh7 {[%clk 0:00:02.5]} 37. Rxh5+ {[%clk 0:00:33.4]} 37... Kg8 {[%clk
0:00:02.9]} 38. Rfh1 {[%clk 0:00:33.1]} 38... g6 {[%clk 0:00:02.8]} 39. Rh8+
{[%clk 0:00:26.7]} 39... Qxh8 {[%clk 0:00:03.1]} 40. Rxh8+ {[%clk 0:00:27.6]}
40... Kxh8 {[%clk 0:00:04]} 41. Ne3 {[%clk 0:00:20.7]} 41... Rxf3 {[%clk
0:00:04.1]} 42. Qxf3 {[%clk 0:00:20.5]} 42... Rxf3 {[%clk 0:00:05]} 43. Kxf3
{[%clk 0:00:21.4]} 43... Bf4 {[%clk 0:00:05.5]} 44. Ng2 {[%clk 0:00:21.2]} 44...
g5 {[%clk 0:00:06]} 45. Ba4 {[%clk 0:00:19.6]} 45... Kg7 {[%clk 0:00:06.3]} 46.
b3 {[%clk 0:00:19.4]} 46... Kg6 {[%clk 0:00:06.3]} 47. Bc6 {[%clk 0:00:20.1]}
47... Kh5 {[%clk 0:00:06.6]} 48. Bd7 {[%clk 0:00:20.4]} 48... Bc1 {[%clk
0:00:05.7]} 49. Bg4+ {[%clk 0:00:20.2]} 49... Kg6 {[%clk 0:00:05.9]} 50. Bc8
{[%clk 0:00:21.1]} 50... Bf4 {[%clk 0:00:06.2]} 51. Bxa6 {[%clk 0:00:21]} 1-0

[Event "Early-Titled-Tuesday-Blitz-October-24-2023"]
[Site "Chess.com"]
[Date "2023.10.24"]
[Round "4"]
[White "Rodalquilar"]
[Black "brm72"]
[Result "0-1"]
[WhiteElo "2747"]
[BlackElo "2556"]
[TimeControl "180+1"]
[EndTime "8:38:16 PDT"]
[Termination "brm72 won by resignation"]

1. d4 {[%clk 0:03:00.9]} 1... Nf6 {[%clk 0:02:59.9]} 2. Nf3 {[%clk 0:03:01.2]}
2... e6 {[%clk 0:02:59.6]} 3. Bf4 {[%clk 0:03:01.2]} 3... d5 {[%clk 0:02:53.9]}
4. e3 {[%clk 0:03:01.3]} 4... Be7 {[%clk 0:02:51.8]} 5. Nbd2 {[%clk 0:02:54.2]}
5... c5 {[%clk 0:02:50.7]} 6. c3 {[%clk 0:02:54.1]} 6... Nc6 {[%clk 0:02:50.4]}
7. h3 {[%clk 0:02:51.4]} 7... Bd6 {[%clk 0:02:50.3]} 8. Bxd6 {[%clk 0:02:50.1]}
8... Qxd6 {[%clk 0:02:49.4]} 9. Bb5 {[%clk 0:02:50.3]} 9... O-O {[%clk
0:02:47.3]} 10. O-O {[%clk 0:02:41.6]} 10... a6 {[%clk 0:02:34.2]} 11. Bxc6
{[%clk 0:02:40.2]} 11... Qxc6 {[%clk 0:02:33.2]} 12. Ne5 {[%clk 0:02:40.5]}
12... Qc7 {[%clk 0:02:33.1]} 13. b4 {[%clk 0:02:25.9]} 13... b6 {[%clk
0:02:28.8]} 14. Rc1 {[%clk 0:02:20]} 14... Bd7 {[%clk 0:02:03.7]} 15. Qb3 {[%clk
0:02:01]} 15... c4 {[%clk 0:01:48.3]} 16. Qb1 {[%clk 0:02:00]} 16... b5 {[%clk
0:01:45.2]} 17. e4 {[%clk 0:01:50.2]} 17... a5 {[%clk 0:01:27.9]} 18. a3 {[%clk
0:01:47.2]} 18... axb4 {[%clk 0:01:26.6]} 19. axb4 {[%clk 0:01:48.1]} 19... Ra3
{[%clk 0:01:25.8]} 20. exd5 {[%clk 0:01:46.2]} 20... exd5 {[%clk 0:01:23.1]} 21.
Rfe1 {[%clk 0:01:41.6]} 21... g6 {[%clk 0:01:12.7]} 22. Re3 {[%clk 0:01:38.8]}
22... Bf5 {[%clk 0:01:10.4]} 23. Qb2 {[%clk 0:01:26.6]} 23... Rfa8 {[%clk
0:01:10]} 24. Rce1 {[%clk 0:01:26.1]} 24... Ra2 {[%clk 0:00:59.3]} 25. Qc1
{[%clk 0:01:25.7]} 25... Rc2 {[%clk 0:00:59]} 26. Qd1 {[%clk 0:01:25.4]} 26...
Raa2 {[%clk 0:00:58.4]} 27. R1e2 {[%clk 0:01:13.9]} 27... Qa7 {[%clk 0:00:39.6]}
28. Nc6 {[%clk 0:00:52.9]} 28... Ra1 {[%clk 0:00:28.5]} 29. Nb1 {[%clk
0:00:43.2]} 29... Qa2 {[%clk 0:00:27.5]} 30. Rxc2 {[%clk 0:00:25.7]} 30... Qxc2
{[%clk 0:00:27.3]} 31. Ne7+ {[%clk 0:00:10.7]} 31... Kf8 {[%clk 0:00:24.1]} 32.
Qf3 {[%clk 0:00:11.1]} 32... Rxb1+ {[%clk 0:00:21.2]} 33. Kh2 {[%clk 0:00:11.2]}
33... Ne4 {[%clk 0:00:20.5]} 34. Nxf5 {[%clk 0:00:10.7]} 34... gxf5 {[%clk
0:00:19.1]} 35. Qxf5 {[%clk 0:00:11.1]} 35... Qxf2 {[%clk 0:00:19.2]} 36. Qc8+
{[%clk 0:00:07.1]} 36... Kg7 {[%clk 0:00:16.6]} 37. Qg4+ {[%clk 0:00:07.2]}
37... Kh8 {[%clk 0:00:16.9]} 38. Qc8+ {[%clk 0:00:06.9]} 38... Kg7 {[%clk
0:00:17.1]} 39. Qg4+ {[%clk 0:00:07.2]} 39... Kh6 {[%clk 0:00:16.2]} 40. Rxe4
{[%clk 0:00:02.3]} 40... dxe4 {[%clk 0:00:14.9]} 41. Qxe4 {[%clk 0:00:02.6]}
41... Qg1+ {[%clk 0:00:13.3]} 42. Kg3 {[%clk 0:00:03.1]} 42... Qe1+ {[%clk
0:00:14]} 43. Kf4 {[%clk 0:00:02.4]} 43... Qxe4+ {[%clk 0:00:13.4]} 44. Kxe4
{[%clk 0:00:03]} 44... Rc1 {[%clk 0:00:12.1]} 45. d5 {[%clk 0:00:03.4]} 45...
Rxc3 {[%clk 0:00:12.7]} 46. Kd4 {[%clk 0:00:04.1]} 46... Rd3+ {[%clk 0:00:13]}
47. Kc5 {[%clk 0:00:05]} 47... c3 {[%clk 0:00:13.4]} 48. d6 {[%clk 0:00:05.7]}
48... c2 {[%clk 0:00:13.7]} 49. d7 {[%clk 0:00:06.6]} 49... Rxd7 {[%clk
0:00:13.5]} 0-1

[Event "Early-Titled-Tuesday-Blitz-October-24-2023"]
[Site "Chess.com"]
[Date "2023.10.24"]
[Round "4"]
[White "falzehope0"]
[Black "SONOFHOLYGOD"]
[Result "0-1"]
[WhiteElo "2330"]
[BlackElo "2513"]
[TimeControl "180+1"]
[EndTime "8:38:17 PDT"]
[Termination "SONOFHOLYGOD won by checkmate"]

1. d4 {[%clk 0:03:00.9]} 1... Nf6 {[%clk 0:02:59.2]} 2. e3 {[%clk 0:02:55]} 2...
g6 {[%clk 0:02:57]} 3. Bd3 {[%clk 0:02:54.1]} 3... Bg7 {[%clk 0:02:56.9]} 4. f4
{[%clk 0:02:53.8]} 4... c5 {[%clk 0:02:56.2]} 5. Nf3 {[%clk 0:02:53.4]} 5... O-O
{[%clk 0:02:55.1]} 6. O-O {[%clk 0:02:52]} 6... d6 {[%clk 0:02:55.5]} 7. c3
{[%clk 0:02:51.3]} 7... Nc6 {[%clk 0:02:55.4]} 8. Bc2 {[%clk 0:02:45.9]} 8...
cxd4 {[%clk 0:02:52.1]} 9. exd4 {[%clk 0:02:45.9]} 9... e5 {[%clk 0:02:51.2]}
10. d5 {[%clk 0:02:39.3]} 10... Ne7 {[%clk 0:02:40.1]} 11. fxe5 {[%clk
0:02:39.3]} 11... dxe5 {[%clk 0:02:38.8]} 12. c4 {[%clk 0:02:36.5]} 12... e4
{[%clk 0:02:38]} 13. Ng5 {[%clk 0:02:28.6]} 13... Bf5 {[%clk 0:02:31.6]} 14. Nc3
{[%clk 0:02:28.1]} 14... Re8 {[%clk 0:02:16.6]} 15. h3 {[%clk 0:02:14.5]} 15...
h6 {[%clk 0:02:08.1]} 16. Ngxe4 {[%clk 0:02:13.1]} 16... Nxe4 {[%clk 0:02:08.5]}
17. Nxe4 {[%clk 0:02:08.3]} 17... Bxe4 {[%clk 0:02:06.4]} 18. Bxe4 {[%clk
0:02:05.7]} 18... Qb6+ {[%clk 0:02:06.2]} 19. Kh1 {[%clk 0:02:02.7]} 19... Rad8
{[%clk 0:01:19.4]} 20. Qf3 {[%clk 0:01:50.4]} 20... f5 {[%clk 0:01:17.4]} 21.
Bc2 {[%clk 0:01:46]} 21... Nc8 {[%clk 0:01:17.2]} 22. Ba4 {[%clk 0:01:37.2]}
22... Re4 {[%clk 0:01:15.2]} 23. Bb3 {[%clk 0:01:32.5]} 23... Nd6 {[%clk
0:01:14.9]} 24. Qd3 {[%clk 0:01:16.6]} 24... Rde8 {[%clk 0:01:13.1]} 25. Rb1
{[%clk 0:01:08.2]} 25... Qc5 {[%clk 0:01:02.5]} 26. Bf4 {[%clk 0:01:03.5]} 26...
b6 {[%clk 0:00:56.7]} 27. Ba4 {[%clk 0:00:49.3]} 27... R8e7 {[%clk 0:00:53.2]}
28. b3 {[%clk 0:00:42.2]} 28... a5 {[%clk 0:00:51.8]} 29. Bc6 {[%clk 0:00:39.6]}
29... Kh7 {[%clk 0:00:41.2]} 30. Qg3 {[%clk 0:00:37.7]} 30... Nf7 {[%clk
0:00:38.2]} 31. Rbd1 {[%clk 0:00:19.9]} 31... g5 {[%clk 0:00:21.6]} 32. Bc1
{[%clk 0:00:18.3]} 32... f4 {[%clk 0:00:20.5]} 33. Qf3 {[%clk 0:00:18.3]} 33...
Kg8 {[%clk 0:00:19.5]} 34. Qd3 {[%clk 0:00:17.6]} 34... Nd6 {[%clk 0:00:19.9]}
35. Ba4 {[%clk 0:00:17.3]} 35... Be5 {[%clk 0:00:17.2]} 36. Qf3 {[%clk
0:00:15.8]} 36... Nf5 {[%clk 0:00:17.5]} 37. Kh2 {[%clk 0:00:13.3]} 37... Ng3
{[%clk 0:00:16.9]} 38. Qg4 {[%clk 0:00:12.7]} 38... Re2 {[%clk 0:00:16.8]} 39.
Rg1 {[%clk 0:00:11.5]} 39... Qf2 {[%clk 0:00:15.6]} 40. Ba3 {[%clk 0:00:09.2]}
40... f3 {[%clk 0:00:15.6]} 41. d6 {[%clk 0:00:09]} 41... Nf1+ {[%clk
0:00:15.7]} 42. Kh1 {[%clk 0:00:09]} 42... Ng3+ {[%clk 0:00:15.8]} 43. Kh2
{[%clk 0:00:09]} 43... Nh5+ {[%clk 0:00:08.8]} 44. Kh1 {[%clk 0:00:09.4]} 44...
Qg3 {[%clk 0:00:08.5]} 45. Qxg3 {[%clk 0:00:09]} 45... Nxg3+ {[%clk 0:00:08]}
46. Kh2 {[%clk 0:00:09.5]} 46... Nf1+ {[%clk 0:00:08.3]} 47. Kh1 {[%clk
0:00:09.8]} 47... Ng3+ {[%clk 0:00:07.8]} 48. Kh2 {[%clk 0:00:10.4]} 48... Rf7
{[%clk 0:00:07.4]} 49. d7 {[%clk 0:00:10]} 49... Nf1+ {[%clk 0:00:07.5]} 50. Kh1
{[%clk 0:00:10.3]} 50... Ng3+ {[%clk 0:00:05.7]} 51. Kh2 {[%clk 0:00:10.7]}
51... Ne4+ {[%clk 0:00:03.5]} 52. Kh1 {[%clk 0:00:10.8]} 52... Nf2# {[%clk
0:00:04.1]} 0-1

[Event "Early-Titled-Tuesday-Blitz-October-24-2023"]
[Site "Chess.com"]
[Date "2023.10.24"]
[Round "4"]
[White "Fan_Of_Chucky"]
[Black "BardArtem"]
[Result "1-0"]
[WhiteElo "2534"]
[BlackElo "2687"]
[TimeControl "180+1"]
[EndTime "8:38:21 PDT"]
[Termination "Fan_Of_Chucky won on time"]

1. d4 {[%clk 0:02:46]} 1... d5 {[%clk 0:02:59.2]} 2. Nc3 {[%clk 0:02:46.3]} 2...
Nf6 {[%clk 0:02:59.1]} 3. Bf4 {[%clk 0:02:45.8]} 3... c5 {[%clk 0:02:59.5]} 4.
e3 {[%clk 0:02:41.5]} 4... cxd4 {[%clk 0:02:59.2]} 5. exd4 {[%clk 0:02:42.4]}
5... a6 {[%clk 0:02:59.8]} 6. Be2 {[%clk 0:02:37.6]} 6... Nc6 {[%clk 0:02:59.1]}
7. Nf3 {[%clk 0:02:29.2]} 7... Bg4 {[%clk 0:02:50.5]} 8. Ne5 {[%clk 0:02:26.5]}
8... Bxe2 {[%clk 0:02:49.6]} 9. Qxe2 {[%clk 0:02:27]} 9... Rc8 {[%clk
0:02:49.1]} 10. Nxc6 {[%clk 0:02:23.1]} 10... Rxc6 {[%clk 0:02:48.1]} 11. O-O
{[%clk 0:02:19.1]} 11... e6 {[%clk 0:02:47.6]} 12. Bg5 {[%clk 0:02:10.8]} 12...
Be7 {[%clk 0:02:46.3]} 13. Nb1 {[%clk 0:02:08.5]} 13... Ne4 {[%clk 0:02:32.5]}
14. Bxe7 {[%clk 0:02:08.7]} 14... Qxe7 {[%clk 0:02:33.4]} 15. c3 {[%clk
0:02:05]} 15... Rb6 {[%clk 0:02:27.7]} 16. Qc2 {[%clk 0:01:56.6]} 16... Qg5
{[%clk 0:02:22.1]} 17. c4 {[%clk 0:01:51.8]} 17... O-O {[%clk 0:02:16.5]} 18. c5
{[%clk 0:01:40.1]} 18... Rb4 {[%clk 0:02:14.4]} 19. Rd1 {[%clk 0:01:40.5]} 19...
Rc4 {[%clk 0:02:07.3]} 20. Nc3 {[%clk 0:01:38.8]} 20... Qg6 {[%clk 0:01:53.2]}
21. Qb3 {[%clk 0:01:34.5]} 21... Rb8 {[%clk 0:00:55.3]} 22. Rac1 {[%clk
0:01:26.6]} 22... h6 {[%clk 0:00:50.7]} 23. Nxe4 {[%clk 0:01:05.9]} 23... Rxc1
{[%clk 0:00:50.3]} 24. Rxc1 {[%clk 0:01:06.8]} 24... Qxe4 {[%clk 0:00:50.6]} 25.
Qe3 {[%clk 0:00:57.8]} 25... Qxe3 {[%clk 0:00:43.9]} 26. fxe3 {[%clk 0:00:58.7]}
26... Kf8 {[%clk 0:00:44.4]} 27. Kf2 {[%clk 0:00:58.4]} 27... Ke7 {[%clk
0:00:44.7]} 28. b4 {[%clk 0:00:48.4]} 28... Kd7 {[%clk 0:00:40.6]} 29. a4 {[%clk
0:00:48.9]} 29... Kc6 {[%clk 0:00:39.7]} 30. Ke2 {[%clk 0:00:44.3]} 30... f6
{[%clk 0:00:38.1]} 31. Rb1 {[%clk 0:00:39.9]} 31... Ra8 {[%clk 0:00:34.5]} 32.
Kd3 {[%clk 0:00:35.1]} 32... e5 {[%clk 0:00:19.3]} 33. h4 {[%clk 0:00:34.8]}
33... Re8 {[%clk 0:00:13.7]} 34. b5+ {[%clk 0:00:28.1]} 34... axb5 {[%clk
0:00:14.6]} 35. axb5+ {[%clk 0:00:28.8]} 35... Kc7 {[%clk 0:00:14.7]} 36. Ra1
{[%clk 0:00:21.6]} 36... exd4 {[%clk 0:00:14.7]} 37. exd4 {[%clk 0:00:22.5]}
37... Re4 {[%clk 0:00:14.7]} 38. h5 {[%clk 0:00:21]} 38... Rg4 {[%clk
0:00:13.7]} 39. Ra8 {[%clk 0:00:18.7]} 39... Rg3+ {[%clk 0:00:13]} 40. Kd2
{[%clk 0:00:13.2]} 40... Rxg2+ {[%clk 0:00:13.9]} 41. Kc3 {[%clk 0:00:12.2]}
41... Rg3+ {[%clk 0:00:09]} 42. Kb4 {[%clk 0:00:12.4]} 42... Rd3 {[%clk
0:00:09.6]} 43. b6+ {[%clk 0:00:08.7]} 43... Kd7 {[%clk 0:00:10.2]} 44. Rb8
{[%clk 0:00:07.4]} 44... Rxd4+ {[%clk 0:00:10.6]} 45. Kb5 {[%clk 0:00:08.2]}
45... Rd1 {[%clk 0:00:05.4]} 46. Rxb7+ {[%clk 0:00:08.4]} 46... Kc8 {[%clk
0:00:06.2]} 47. Rxg7 {[%clk 0:00:07.5]} 47... Rg1 {[%clk 0:00:01.1]} 48. Rxg1
{[%clk 0:00:06.6]} 1-0

[Event "Early-Titled-Tuesday-Blitz-October-24-2023"]
[Site "Chess.com"]
[Date "2023.10.24"]
[Round "4"]
[White "GeorgiosSouleidis"]
[Black "ideika"]
[Result "1-0"]
[WhiteElo "2621"]
[BlackElo "2376"]
[TimeControl "180+1"]
[EndTime "8:38:23 PDT"]
[Termination "GeorgiosSouleidis won by resignation"]

1. e4 {[%clk 0:03:00.9]} 1... e5 {[%clk 0:02:59.4]} 2. Nc3 {[%clk 0:03:00.4]}
2... Nc6 {[%clk 0:02:59.5]} 3. Nf3 {[%clk 0:03:00]} 3... Nf6 {[%clk 0:02:59.6]}
4. d4 {[%clk 0:03:00.5]} 4... exd4 {[%clk 0:02:58.9]} 5. Nxd4 {[%clk 0:03:01.4]}
5... Bb4 {[%clk 0:02:59.6]} 6. Nxc6 {[%clk 0:03:01.8]} 6... bxc6 {[%clk
0:02:59.6]} 7. Bd3 {[%clk 0:03:02.4]} 7... Qe7 {[%clk 0:02:58.8]} 8. O-O {[%clk
0:03:01.3]} 8... O-O {[%clk 0:02:57.7]} 9. Qf3 {[%clk 0:02:47.5]} 9... d6 {[%clk
0:02:06.9]} 10. h3 {[%clk 0:02:39]} 10... Nd7 {[%clk 0:02:00.8]} 11. Qg3 {[%clk
0:02:35.8]} 11... Ne5 {[%clk 0:01:30.2]} 12. Bd2 {[%clk 0:02:33.3]} 12... f5
{[%clk 0:01:23]} 13. exf5 {[%clk 0:02:13.8]} 13... Bxf5 {[%clk 0:01:23.9]} 14.
Bxf5 {[%clk 0:02:10.4]} 14... Rxf5 {[%clk 0:01:24.8]} 15. Rae1 {[%clk
0:01:57.5]} 15... Raf8 {[%clk 0:01:23.8]} 16. f4 {[%clk 0:01:13.2]} 16... Qf7
{[%clk 0:00:57.1]} 17. a3 {[%clk 0:00:57.7]} 17... Ba5 {[%clk 0:00:40.2]} 18. b4
{[%clk 0:00:44.5]} 18... Bb6+ {[%clk 0:00:40.6]} 19. Kh2 {[%clk 0:00:41.4]}
19... Nc4 {[%clk 0:00:36.9]} 20. Bc1 {[%clk 0:00:41.7]} 20... d5 {[%clk
0:00:36]} 21. Qh4 {[%clk 0:00:25.3]} 21... Qf6 {[%clk 0:00:33.8]} 22. Qxf6
{[%clk 0:00:23.4]} 22... R5xf6 {[%clk 0:00:34.7]} 23. Re7 {[%clk 0:00:21]} 23...
d4 {[%clk 0:00:32.5]} 24. Ne4 {[%clk 0:00:18.8]} 24... R6f7 {[%clk 0:00:30.7]}
25. Rxf7 {[%clk 0:00:17.8]} 25... Rxf7 {[%clk 0:00:31.6]} 26. Ng5 {[%clk
0:00:18.4]} 26... Rf5 {[%clk 0:00:31.2]} 27. Re1 {[%clk 0:00:16.7]} 27... Ne3
{[%clk 0:00:30.1]} 28. Bxe3 {[%clk 0:00:16.6]} 28... dxe3 {[%clk 0:00:30.1]} 29.
Kg3 {[%clk 0:00:16.9]} 29... h6 {[%clk 0:00:28.1]} 30. Ne4 {[%clk 0:00:16.7]}
30... Rf8 {[%clk 0:00:27.6]} 31. Kf3 {[%clk 0:00:15.1]} 31... Re8 {[%clk
0:00:28.3]} 32. c4 {[%clk 0:00:12.8]} 32... Bd4 {[%clk 0:00:26.9]} 33. g4 {[%clk
0:00:08.4]} 33... Kf7 {[%clk 0:00:26.6]} 34. h4 {[%clk 0:00:07.9]} 34... Kg6
{[%clk 0:00:25]} 35. h5+ {[%clk 0:00:08.2]} 35... Kf7 {[%clk 0:00:25.2]} 36. g5
{[%clk 0:00:09.1]} 36... hxg5 {[%clk 0:00:24.7]} 37. fxg5 {[%clk 0:00:09.6]}
37... g6 {[%clk 0:00:24.9]} 38. h6 {[%clk 0:00:09.6]} 38... Kg8 {[%clk
0:00:25.5]} 39. Rh1 {[%clk 0:00:04.7]} 39... Kh7 {[%clk 0:00:26]} 40. Rh2 {[%clk
0:00:02.9]} 40... a6 {[%clk 0:00:24.3]} 41. Rg2 {[%clk 0:00:02.6]} 41... Rf8+
{[%clk 0:00:24.5]} 42. Ke2 {[%clk 0:00:02.8]} 42... Rf5 {[%clk 0:00:22.2]} 43.
Kd3 {[%clk 0:00:02.9]} 43... c5 {[%clk 0:00:21.7]} 44. bxc5 {[%clk 0:00:02.8]}
44... c6 {[%clk 0:00:18.9]} 45. Rc2 {[%clk 0:00:02.1]} 45... Rf8 {[%clk
0:00:17.7]} 46. Kxd4 {[%clk 0:00:02.4]} 46... e2 {[%clk 0:00:17.3]} 47. Rxe2
{[%clk 0:00:02.5]} 47... Rb8 {[%clk 0:00:17.7]} 48. Nf6+ {[%clk 0:00:02.7]}
48... Kh8 {[%clk 0:00:17.2]} 49. Re7 {[%clk 0:00:03]} 1-0